[Event "Titled Tuesday Blitz March 08 Late 2022"]
[White "Keymer, Vincent"]
[Black "Denishev, Marat"]
[WhiteFideId "12940690"]
[BlackFideId "24131563"]
[WhiteElo "2557"]
[BlackElo "2197"]
[Result "1-0"]
[Round "02"]
[TimeControl "180+1"]
[Date "2022.03.08"]
[WhiteClock "0:01:33"]
[BlackClock "0:01:11"]

1. Nf3 {[%clk 0:03:00]}  Nf6 {[%clk 0:02:58]} 2. c4 {[%clk 0:03:01]}  c5 {[%clk 0:02:58]} 3. Nc3 {[%clk 0:03:01]}  g6 {[%clk 0:02:56]} 4. g3 {[%clk 0:03:01]}  Bg7 {[%clk 0:02:57]} 5. Bg2 {[%clk 0:03:01]}  O-O {[%clk 0:02:58]} 6. d4 {[%clk 0:03:01]}  cxd4 {[%clk 0:02:59]} 7. Nxd4 {[%clk 0:03:02]}  Nc6 {[%clk 0:02:58]} 8. O-O {[%clk 0:03:02]}  Qa5 {[%clk 0:02:58]} 9. e3 {[%clk 0:03:01]}  Rd8 {[%clk 0:02:57]} 10. Bd2 {[%clk 0:02:57]}  Qh5 {[%clk 0:02:50]} 11. Qxh5 {[%clk 0:02:54]}  Nxh5 {[%clk 0:02:51]} 12. Nd5 {[%clk 0:02:54]}  Nxd4 {[%clk 0:02:42]} 13. exd4 {[%clk 0:02:47]}  e6 {[%clk 0:02:43]} 14. Nc7 {[%clk 0:02:45]}  Rb8 {[%clk 0:02:41]} 15. Bg5 {[%clk 0:02:33]}  f6 {[%clk 0:02:22]} 16. Be3 {[%clk 0:02:30]}  Bf8 {[%clk 0:02:22]} 17. d5 {[%clk 0:02:22]}  b6 {[%clk 0:02:10]} 18. Rad1 {[%clk 0:01:57]}  Bb7 {[%clk 0:01:57]} 19. dxe6 {[%clk 0:01:53]}  Bxg2 {[%clk 0:01:55]} 20. Kxg2 {[%clk 0:01:54]}  dxe6 {[%clk 0:01:36]} 21. Nxe6 {[%clk 0:01:55]}  Re8 {[%clk 0:01:30]} 22. Nxf8 {[%clk 0:01:52]}  Kxf8 {[%clk 0:01:31]} 23. Rd7 {[%clk 0:01:52]}  Re7 {[%clk 0:01:31]} 24. Rfd1 {[%clk 0:01:50]}  g5 {[%clk 0:01:18]} 25. c5 {[%clk 0:01:48]}  Ng7 {[%clk 0:01:14]} 26. c6 {[%clk 0:01:35]}  Ne6 {[%clk 0:01:10]} 27. Rxe7 {[%clk 0:01:34]}  Kxe7 {[%clk 0:01:11]} 28. Rd7+ {[%clk 0:01:35]}  Ke8 {[%clk 0:01:11]} 29. Rxh7 {[%clk 0:01:33]} 1-0


[Site "https://www.chess.com"]

[Event "Titled Tuesday Blitz March 08 Late 2022"]
[White "Kovanova, Baira"]
[Black "Kaganskiy, Gleb"]
[WhiteFideId "4164083"]
[BlackFideId "4132025"]
[WhiteElo "2190"]
[BlackElo "2165"]
[Result "0-1"]
[Round "02"]
[TimeControl "180+1"]
[Date "2022.03.09"]
[WhiteClock "0:00:01"]
[BlackClock "0:00:12"]

1. e4 {[%clk 0:02:59]}  d6 {[%clk 0:02:56]} 2. d4 {[%clk 0:02:59]}  Nf6 {[%clk 0:02:54]} 3. Bd3 {[%clk 0:02:58]}  e5 {[%clk 0:02:51]} 4. c3 {[%clk 0:02:55]}  d5 {[%clk 0:02:49]} 5. dxe5 {[%clk 0:02:51]}  Nxe4 {[%clk 0:02:47]} 6. Nf3 {[%clk 0:02:50]}  Nc6 {[%clk 0:02:43]} 7. O-O {[%clk 0:02:49]}  Nc5 {[%clk 0:02:38]} 8. Bc2 {[%clk 0:02:44]}  Bg4 {[%clk 0:02:39]} 9. Re1 {[%clk 0:02:43]}  Be7 {[%clk 0:02:37]} 10. h3 {[%clk 0:02:42]}  Bh5 {[%clk 0:02:35]} 11. b4 {[%clk 0:02:37]}  Ne6 {[%clk 0:02:32]} 12. Nbd2 {[%clk 0:02:22]}  d4 {[%clk 0:02:28]} 13. cxd4 {[%clk 0:02:14]}  Ncxd4 {[%clk 0:02:25]} 14. Be4 {[%clk 0:02:09]}  c6 {[%clk 0:02:17]} 15. Bb2 {[%clk 0:02:01]}  Nxf3+ {[%clk 0:02:10]} 16. Nxf3 {[%clk 0:01:46]}  Qxd1 {[%clk 0:02:11]} 17. Rexd1 {[%clk 0:01:46]}  Bxb4 {[%clk 0:02:11]} 18. Rab1 {[%clk 0:01:45]}  Bc5 {[%clk 0:02:07]} 19. Bc3 {[%clk 0:01:40]}  Bb6 {[%clk 0:01:36]} 20. Bb4 {[%clk 0:01:06]}  Rd8 {[%clk 0:01:26]} 21. Bd6 {[%clk 0:01:05]}  Kd7 {[%clk 0:01:16]} 22. a4 {[%clk 0:00:49]}  Kc8 {[%clk 0:01:10]} 23. Rdc1 {[%clk 0:00:33]}  Bxf3 {[%clk 0:01:02]} 24. Bxf3 {[%clk 0:00:33]}  Nd4 {[%clk 0:01:02]} 25. Be4 {[%clk 0:00:31]}  Ne2+ {[%clk 0:01:02]} 26. Kf1 {[%clk 0:00:31]}  Nxc1 {[%clk 0:01:02]} 27. Rxc1 {[%clk 0:00:31]}  g6 {[%clk 0:00:56]} 28. f4 {[%clk 0:00:29]}  Bc7 {[%clk 0:00:53]} 29. Bc5 {[%clk 0:00:23]}  Bb6 {[%clk 0:00:48]} 30. Bd6 {[%clk 0:00:16]}  Rhe8 {[%clk 0:00:47]} 31. Bf3 {[%clk 0:00:15]}  h5 {[%clk 0:00:37]} 32. g4 {[%clk 0:00:14]}  Be3 {[%clk 0:00:35]} 33. Rc4 {[%clk 0:00:13]}  Rh8 {[%clk 0:00:19]} 34. gxh5 {[%clk 0:00:12]}  gxh5 {[%clk 0:00:19]} 35. Be4 {[%clk 0:00:12]}  Rdg8 {[%clk 0:00:15]} 36. Bf5+ {[%clk 0:00:11]}  Kd8 {[%clk 0:00:16]} 37. Re4 {[%clk 0:00:11]}  Bb6 {[%clk 0:00:14]} 38. Rc4 {[%clk 0:00:05]}  Rg1+ {[%clk 0:00:14]} 39. Ke2 {[%clk 0:00:05]}  Rhg8 {[%clk 0:00:14]} 40. Rc2 {[%clk 0:00:03]}  R8g2+ {[%clk 0:00:14]} 41. Kd3 {[%clk 0:00:03]}  Rd1+ {[%clk 0:00:14]} 42. Kc3 {[%clk 0:00:02]}  Ba5+ {[%clk 0:00:12]} 43. Kb3 {[%clk 0:00:02]}  Rb1+ {[%clk 0:00:12]} 44. Ka2 {[%clk 0:00:01]}  Rxc2+ {[%clk 0:00:12]} 0-1


[Site "https://www.chess.com"]

[Event "Titled Tuesday Blitz March 08 Late 2022"]
[White "Kuegel, Tobias"]
[Black "Fajdetic, Hrvoje"]
[WhiteFideId "4636295"]
[BlackFideId "14501945"]
[WhiteElo "2213"]
[BlackElo "2172"]
[Result "0-1"]
[Round "02"]
[TimeControl "180+1"]
[Date "2022.03.09"]
[WhiteClock "0:00:01"]
[BlackClock "0:00:55"]

1. e4 {[%clk 0:03:00]}  e6 {[%clk 0:02:56]} 2. d4 {[%clk 0:02:56]}  d5 {[%clk 0:02:56]} 3. exd5 {[%clk 0:02:57]}  exd5 {[%clk 0:02:57]} 4. Bd3 {[%clk 0:02:53]}  Bd6 {[%clk 0:02:55]} 5. Nf3 {[%clk 0:02:48]}  Ne7 {[%clk 0:02:55]} 6. O-O {[%clk 0:02:45]}  O-O {[%clk 0:02:55]} 7. c3 {[%clk 0:02:43]}  Bf5 {[%clk 0:02:55]} 8. Be3 {[%clk 0:02:36]}  Bxd3 {[%clk 0:02:54]} 9. Qxd3 {[%clk 0:02:35]}  c6 {[%clk 0:02:55]} 10. Nbd2 {[%clk 0:02:35]}  Qd7 {[%clk 0:02:55]} 11. Ng5 {[%clk 0:02:31]}  Qf5 {[%clk 0:02:54]} 12. Qxf5 {[%clk 0:02:13]}  Nxf5 {[%clk 0:02:55]} 13. Ngf3 {[%clk 0:02:06]}  Re8 {[%clk 0:02:54]} 14. Rae1 {[%clk 0:02:04]}  Nd7 {[%clk 0:02:49]} 15. g3 {[%clk 0:01:48]}  h5 {[%clk 0:02:46]} 16. Kg2 {[%clk 0:01:47]}  Nf6 {[%clk 0:02:39]} 17. h3 {[%clk 0:01:35]}  Re6 {[%clk 0:02:15]} 18. Ng5 {[%clk 0:01:33]}  Re7 {[%clk 0:02:15]} 19. Ndf3 {[%clk 0:01:27]}  Rae8 {[%clk 0:02:11]} 20. Bd2 {[%clk 0:01:21]}  Ne4 {[%clk 0:02:09]} 21. Bc1 {[%clk 0:01:07]}  f6 {[%clk 0:02:02]} 22. Nxe4 {[%clk 0:01:06]}  dxe4 {[%clk 0:02:01]} 23. Ng1 {[%clk 0:01:01]}  e3 {[%clk 0:01:30]} 24. Bxe3 {[%clk 0:00:34]}  Nxe3+ {[%clk 0:01:31]} 25. fxe3 {[%clk 0:00:32]}  Rxe3 {[%clk 0:01:31]} 26. Rxe3 {[%clk 0:00:25]}  Rxe3 {[%clk 0:01:32]} 27. Nf3 {[%clk 0:00:24]}  g5 {[%clk 0:01:28]} 28. Re1 {[%clk 0:00:23]}  Rxe1 {[%clk 0:01:28]} 29. Nxe1 {[%clk 0:00:24]}  g4 {[%clk 0:01:22]} 30. hxg4 {[%clk 0:00:22]}  hxg4 {[%clk 0:01:22]} 31. Nd3 {[%clk 0:00:21]}  Kf7 {[%clk 0:01:21]} 32. Nf4 {[%clk 0:00:20]}  Bxf4 {[%clk 0:01:19]} 33. gxf4 {[%clk 0:00:21]}  f5 {[%clk 0:01:18]} 34. Kg3 {[%clk 0:00:20]}  b5 {[%clk 0:01:17]} 35. b3 {[%clk 0:00:19]}  a5 {[%clk 0:01:08]} 36. c4 {[%clk 0:00:19]}  a4 {[%clk 0:01:06]} 37. Kf2 {[%clk 0:00:16]}  axb3 {[%clk 0:01:04]} 38. axb3 {[%clk 0:00:15]}  bxc4 {[%clk 0:01:04]} 39. bxc4 {[%clk 0:00:16]}  Ke6 {[%clk 0:01:01]} 40. Kg3 {[%clk 0:00:16]}  Kd6 {[%clk 0:01:01]} 41. Kf2 {[%clk 0:00:16]}  Kc7 {[%clk 0:01:01]} 42. Ke3 {[%clk 0:00:06]}  Kb6 {[%clk 0:01:00]} 43. Kd3 {[%clk 0:00:05]}  Ka5 {[%clk 0:00:58]} 44. Ke3 {[%clk 0:00:05]}  Kb4 {[%clk 0:00:57]} 45. Kd3 {[%clk 0:00:06]}  g3 {[%clk 0:00:55]} 46. Ke3 {[%clk 0:00:05]}  Kxc4 {[%clk 0:00:54]} 47. Kf3 {[%clk 0:00:06]}  Kxd4 {[%clk 0:00:54]} 48. Kxg3 {[%clk 0:00:01]}  Ke3 {[%clk 0:00:55]} 0-1


[Site "https://www.chess.com"]

[Event "Titled Tuesday Blitz March 08 Late 2022"]
[White "Melkumyan, Hrant"]
[Black "Domingo Nunez, Alejandro"]
[WhiteFideId "13302485"]
[BlackFideId "22245561"]
[WhiteElo "2604"]
[BlackElo "2215"]
[Result "1-0"]
[Round "02"]
[TimeControl "180+1"]
[Date "2022.03.08"]
[WhiteClock "0:00:22"]
[BlackClock "0:00:28"]

1. d4 {[%clk 0:02:02]}  g6 {[%clk 0:02:59]} 2. c4 {[%clk 0:02:01]}  Bg7 {[%clk 0:03:00]} 3. Nf3 {[%clk 0:02:01]}  d6 {[%clk 0:03:00]} 4. Nc3 {[%clk 0:02:01]}  Nd7 {[%clk 0:03:00]} 5. g3 {[%clk 0:02:00]}  Ngf6 {[%clk 0:03:01]} 6. Bg2 {[%clk 0:02:00]}  O-O {[%clk 0:03:01]} 7. O-O {[%clk 0:02:00]}  c5 {[%clk 0:03:02]} 8. b3 {[%clk 0:01:56]}  Rb8 {[%clk 0:03:02]} 9. Bb2 {[%clk 0:01:55]}  a6 {[%clk 0:03:02]} 10. a4 {[%clk 0:01:55]}  b6 {[%clk 0:03:03]} 11. e4 {[%clk 0:01:48]}  Ne8 {[%clk 0:03:03]} 12. Re1 {[%clk 0:01:45]}  Nc7 {[%clk 0:03:04]} 13. Nd5 {[%clk 0:01:42]}  Ne6 {[%clk 0:03:03]} 14. Qd2 {[%clk 0:01:37]}  b5 {[%clk 0:03:03]} 15. cxb5 {[%clk 0:01:34]}  axb5 {[%clk 0:03:04]} 16. a5 {[%clk 0:01:34]}  b4 {[%clk 0:02:47]} 17. dxc5 {[%clk 0:01:32]}  Bxb2 {[%clk 0:02:25]} 18. Qxb2 {[%clk 0:01:33]}  Ndxc5 {[%clk 0:02:25]} 19. Re3 {[%clk 0:01:30]}  Ba6 {[%clk 0:02:18]} 20. Bf1 {[%clk 0:01:27]}  Bb7 {[%clk 0:02:15]} 21. a6 {[%clk 0:01:22]}  Ba8 {[%clk 0:02:14]} 22. Bc4 {[%clk 0:01:19]}  Nc7 {[%clk 0:01:58]} 23. Nd4 {[%clk 0:01:04]}  e5 {[%clk 0:01:42]} 24. Nf3 {[%clk 0:00:52]}  Nxd5 {[%clk 0:01:20]} 25. exd5 {[%clk 0:00:52]}  Qb6 {[%clk 0:01:15]} 26. h4 {[%clk 0:00:49]}  Rbe8 {[%clk 0:00:55]} 27. h5 {[%clk 0:00:49]}  Nd7 {[%clk 0:00:55]} 28. h6 {[%clk 0:00:45]}  Nf6 {[%clk 0:00:55]} 29. Qd2 {[%clk 0:00:35]}  Ng4 {[%clk 0:00:54]} 30. Re4 {[%clk 0:00:31]}  Nxh6 {[%clk 0:00:54]} 31. Qxh6 {[%clk 0:00:30]}  f5 {[%clk 0:00:54]} 32. Rh4 {[%clk 0:00:29]}  Re7 {[%clk 0:00:55]} 33. Ng5 {[%clk 0:00:30]}  Qa7 {[%clk 0:00:53]} 34. Ne6 {[%clk 0:00:29]}  Rff7 {[%clk 0:00:52]} 35. Re1 {[%clk 0:00:25]}  Qb6 {[%clk 0:00:48]} 36. Ng5 {[%clk 0:00:23]}  Rg7 {[%clk 0:00:47]} 37. Ne6 {[%clk 0:00:24]}  Rgf7 {[%clk 0:00:47]} 38. Qe3 {[%clk 0:00:24]}  Qa5 {[%clk 0:00:44]} 39. Ng5 {[%clk 0:00:24]}  Rf8 {[%clk 0:00:43]} 40. Qc1 {[%clk 0:00:23]}  Qc5 {[%clk 0:00:29]} 41. Ne6 {[%clk 0:00:21]}  Rxe6 {[%clk 0:00:28]} 42. dxe6 {[%clk 0:00:22]}  Qc6 {[%clk 0:00:29]} 43. e7+ {[%clk 0:00:23]}  Kg7 {[%clk 0:00:28]} 44. Qh6+ {[%clk 0:00:22]}  Kf6 {[%clk 0:00:28]} 45. exf8=Q# {[%clk 0:00:22]} 1-0


[Site "https://www.chess.com"]

[Event "Titled Tuesday Blitz March 08 Late 2022"]
[White "Milanovic, Marko"]
[Black "Dilmukhametov, Artur"]
[WhiteFideId "980129"]
[BlackFideId "24179922"]
[WhiteElo "2159"]
[BlackElo "2237"]
[Result "0-1"]
[Round "02"]
[TimeControl "180+1"]
[Date "2022.03.09"]
[WhiteClock "0:00:54"]
[BlackClock "0:00:15"]

1. e4 {[%clk 0:03:00]}  e6 {[%clk 0:03:00]} 2. d4 {[%clk 0:03:00]}  d5 {[%clk 0:03:00]} 3. Nc3 {[%clk 0:03:00]}  Bb4 {[%clk 0:03:00]} 4. Ne2 {[%clk 0:03:00]}  Nf6 {[%clk 0:03:00]} 5. e5 {[%clk 0:02:58]}  Nfd7 {[%clk 0:03:00]} 6. a3 {[%clk 0:02:56]}  Be7 {[%clk 0:03:00]} 7. Nf4 {[%clk 0:02:56]}  c6 {[%clk 0:02:58]} 8. Qg4 {[%clk 0:02:55]}  g6 {[%clk 0:02:55]} 9. Bd3 {[%clk 0:02:48]}  c5 {[%clk 0:02:55]} 10. Nxg6 {[%clk 0:02:46]}  hxg6 {[%clk 0:02:54]} 11. Bxg6 {[%clk 0:02:46]}  Rg8 {[%clk 0:02:27]} 12. Bxf7+ {[%clk 0:02:46]}  Kxf7 {[%clk 0:02:28]} 13. Qh5+ {[%clk 0:02:46]}  Rg6 {[%clk 0:02:28]} 14. Ne2 {[%clk 0:02:45]}  Qg8 {[%clk 0:01:57]} 15. Nf4 {[%clk 0:02:40]}  Nf8 {[%clk 0:01:57]} 16. Be3 {[%clk 0:02:19]}  cxd4 {[%clk 0:01:52]} 17. Bxd4 {[%clk 0:02:19]}  Nc6 {[%clk 0:01:52]} 18. Be3 {[%clk 0:02:15]}  Bd7 {[%clk 0:01:18]} 19. O-O-O {[%clk 0:02:08]}  Qh7 {[%clk 0:01:15]} 20. Qf3 {[%clk 0:02:01]}  Nxe5 {[%clk 0:01:12]} 21. Qe2 {[%clk 0:01:56]}  Rg8 {[%clk 0:01:06]} 22. Bd4 {[%clk 0:01:53]}  Nc6 {[%clk 0:01:01]} 23. Bc3 {[%clk 0:01:46]}  Bg5 {[%clk 0:01:01]} 24. Bd2 {[%clk 0:01:45]}  Bxf4 {[%clk 0:00:59]} 25. Bxf4 {[%clk 0:01:46]}  Ng6 {[%clk 0:00:56]} 26. Bg3 {[%clk 0:01:45]}  Nge7 {[%clk 0:00:49]} 27. Rhe1 {[%clk 0:01:43]}  Nf5 {[%clk 0:00:49]} 28. Bf4 {[%clk 0:01:39]}  Rxg2 {[%clk 0:00:48]} 29. c4 {[%clk 0:01:39]}  Qh4 {[%clk 0:00:40]} 30. Bg3 {[%clk 0:01:33]}  Nxg3 {[%clk 0:00:37]} 31. hxg3 {[%clk 0:01:34]}  Qg5+ {[%clk 0:00:31]} 32. Kb1 {[%clk 0:01:33]}  Ne7 {[%clk 0:00:29]} 33. Ka1 {[%clk 0:01:28]}  Qf5 {[%clk 0:00:24]} 34. Rf1 {[%clk 0:01:24]}  Rh8 {[%clk 0:00:22]} 35. Qe3 {[%clk 0:01:19]}  Rhh2 {[%clk 0:00:19]} 36. Rd2 {[%clk 0:01:19]}  Bc6 {[%clk 0:00:17]} 37. Qxa7 {[%clk 0:01:14]}  dxc4 {[%clk 0:00:17]} 38. Qd4 {[%clk 0:01:15]}  Nd5 {[%clk 0:00:17]} 39. Qxc4 {[%clk 0:01:13]}  Rxf2 {[%clk 0:00:17]} 40. Rdxf2 {[%clk 0:01:11]}  Rxf2 {[%clk 0:00:17]} 41. Rh1 {[%clk 0:01:11]}  Ne3 {[%clk 0:00:14]} 42. Qd4 {[%clk 0:00:54]}  Nc2+ {[%clk 0:00:15]} 0-1


[Site "https://www.chess.com"]

[Event "Titled Tuesday Blitz March 08 Late 2022"]
[White "Mirzoev, Azer"]
[Black "Miszler, Levente"]
[WhiteFideId "13400304"]
[BlackFideId "763276"]
[WhiteElo "2525"]
[BlackElo "1966"]
[Result "1-0"]
[Round "02"]
[TimeControl "180+1"]
[Date "2022.03.09"]
[WhiteClock "0:00:28"]
[BlackClock "0:00:18"]

1. c4 {[%clk 0:03:00]}  e5 {[%clk 0:02:58]} 2. Nc3 {[%clk 0:02:59]}  Nc6 {[%clk 0:02:59]} 3. e3 {[%clk 0:02:59]}  Nf6 {[%clk 0:02:56]} 4. d4 {[%clk 0:02:59]}  d6 {[%clk 0:02:55]} 5. Nf3 {[%clk 0:02:58]}  g6 {[%clk 0:02:54]} 6. Be2 {[%clk 0:02:57]}  Bg7 {[%clk 0:02:54]} 7. O-O {[%clk 0:02:58]}  O-O {[%clk 0:02:55]} 8. a3 {[%clk 0:02:58]}  Re8 {[%clk 0:02:50]} 9. h3 {[%clk 0:02:56]}  exd4 {[%clk 0:02:50]} 10. exd4 {[%clk 0:02:56]}  Ne4 {[%clk 0:02:50]} 11. Nd5 {[%clk 0:02:55]}  h6 {[%clk 0:02:41]} 12. Be3 {[%clk 0:02:52]}  Bf5 {[%clk 0:02:38]} 13. Re1 {[%clk 0:02:51]}  Qd7 {[%clk 0:02:37]} 14. Bf1 {[%clk 0:02:50]}  Nf6 {[%clk 0:02:34]} 15. Rc1 {[%clk 0:02:45]}  Ne7 {[%clk 0:02:34]} 16. Nxf6+ {[%clk 0:02:41]}  Bxf6 {[%clk 0:02:34]} 17. Bxh6 {[%clk 0:02:42]}  Nc6 {[%clk 0:02:28]} 18. Qd2 {[%clk 0:02:38]}  Be4 {[%clk 0:02:27]} 19. Qf4 {[%clk 0:02:38]}  Qf5 {[%clk 0:02:17]} 20. Qxf5 {[%clk 0:02:28]}  Bxf5 {[%clk 0:02:18]} 21. d5 {[%clk 0:02:24]}  Nd4 {[%clk 0:02:16]} 22. Nxd4 {[%clk 0:02:21]}  Bxd4 {[%clk 0:02:15]} 23. g4 {[%clk 0:02:10]}  Bd7 {[%clk 0:02:03]} 24. b4 {[%clk 0:01:54]}  Bb2 {[%clk 0:02:02]} 25. Rxe8+ {[%clk 0:01:53]}  Rxe8 {[%clk 0:02:02]} 26. Rb1 {[%clk 0:01:54]}  Bd4 {[%clk 0:01:45]} 27. Bd2 {[%clk 0:01:46]}  f5 {[%clk 0:01:43]} 28. g5 {[%clk 0:01:46]}  f4 {[%clk 0:01:28]} 29. Bxf4 {[%clk 0:01:44]}  Bf5 {[%clk 0:01:28]} 30. Rd1 {[%clk 0:01:43]}  Bb2 {[%clk 0:01:27]} 31. a4 {[%clk 0:01:39]}  Bc3 {[%clk 0:01:16]} 32. b5 {[%clk 0:01:38]}  Kf7 {[%clk 0:01:13]} 33. h4 {[%clk 0:01:34]}  Bg4 {[%clk 0:01:12]} 34. Rd3 {[%clk 0:01:28]}  Bb4 {[%clk 0:01:09]} 35. Re3 {[%clk 0:01:27]}  Rh8 {[%clk 0:01:07]} 36. Bg3 {[%clk 0:01:26]}  Bc5 {[%clk 0:01:07]} 37. Re4 {[%clk 0:01:26]}  Bf5 {[%clk 0:01:05]} 38. Re1 {[%clk 0:01:22]}  Rf8 {[%clk 0:01:00]} 39. Kg2 {[%clk 0:01:12]}  Ra8 {[%clk 0:00:55]} 40. Bf4 {[%clk 0:00:57]}  a6 {[%clk 0:00:55]} 41. Be3 {[%clk 0:00:56]}  Bxe3 {[%clk 0:00:52]} 42. Rxe3 {[%clk 0:00:56]}  axb5 {[%clk 0:00:53]} 43. axb5 {[%clk 0:00:55]}  Ra2 {[%clk 0:00:49]} 44. Kg3 {[%clk 0:00:54]}  Rc2 {[%clk 0:00:47]} 45. f3 {[%clk 0:00:45]}  Rc1 {[%clk 0:00:47]} 46. Be2 {[%clk 0:00:44]}  Rc2 {[%clk 0:00:47]} 47. Kf4 {[%clk 0:00:44]}  Rb2 {[%clk 0:00:39]} 48. h5 {[%clk 0:00:41]}  Rb1 {[%clk 0:00:37]} 49. h6 {[%clk 0:00:41]}  Rh1 {[%clk 0:00:37]} 50. b6 {[%clk 0:00:35]}  cxb6 {[%clk 0:00:36]} 51. Rb3 {[%clk 0:00:34]}  Rh4+ {[%clk 0:00:29]} 52. Ke3 {[%clk 0:00:33]}  Bc8 {[%clk 0:00:25]} 53. Rxb6 {[%clk 0:00:32]}  Ke7 {[%clk 0:00:25]} 54. c5 {[%clk 0:00:31]}  dxc5 {[%clk 0:00:26]} 55. Rxg6 {[%clk 0:00:31]}  c4 {[%clk 0:00:24]} 56. Rg7+ {[%clk 0:00:30]}  Kd6 {[%clk 0:00:24]} 57. h7 {[%clk 0:00:30]}  Bf5 {[%clk 0:00:23]} 58. g6 {[%clk 0:00:29]}  Kxd5 {[%clk 0:00:21]} 59. Rg8 {[%clk 0:00:28]}  Bxg6 {[%clk 0:00:19]} 60. h8=Q {[%clk 0:00:28]}  Rxh8 {[%clk 0:00:18]} 61. Rxh8 {[%clk 0:00:29]}  b5 {[%clk 0:00:19]} 62. Rg8 {[%clk 0:00:28]}  Bc2 {[%clk 0:00:18]} 63. Rg5+ {[%clk 0:00:29]}  Kc6 {[%clk 0:00:18]} 64. Kd4 {[%clk 0:00:28]} 1-0


[Site "https://www.chess.com"]

[Event "Titled Tuesday Blitz March 08 Late 2022"]
[White "Mogranzini, Roberto"]
[Black "Makarian, Rudik"]
[WhiteFideId "810894"]
[BlackFideId "44105681"]
[WhiteElo "2469"]
[BlackElo "2388"]
[Result "0-1"]
[Round "02"]
[TimeControl "180+1"]
[Date "2022.03.08"]
[WhiteClock "0:00:49"]
[BlackClock "0:02:04"]

1. e4 {[%clk 0:03:00]}  c5 {[%clk 0:03:00]} 2. Nf3 {[%clk 0:03:01]}  e6 {[%clk 0:03:01]} 3. Nc3 {[%clk 0:03:01]}  Nc6 {[%clk 0:03:01]} 4. g3 {[%clk 0:03:02]}  Nf6 {[%clk 0:03:01]} 5. Bg2 {[%clk 0:03:02]}  d6 {[%clk 0:02:59]} 6. O-O {[%clk 0:03:02]}  Be7 {[%clk 0:02:59]} 7. Re1 {[%clk 0:03:02]}  O-O {[%clk 0:02:59]} 8. d4 {[%clk 0:03:02]}  cxd4 {[%clk 0:03:00]} 9. Nxd4 {[%clk 0:03:03]}  Bd7 {[%clk 0:03:00]} 10. Nb3 {[%clk 0:03:02]}  Na5 {[%clk 0:02:56]} 11. g4 {[%clk 0:03:02]}  Bc6 {[%clk 0:02:51]} 12. g5 {[%clk 0:03:01]}  Nd7 {[%clk 0:02:51]} 13. f4 {[%clk 0:03:01]}  Nxb3 {[%clk 0:02:43]} 14. axb3 {[%clk 0:02:59]}  e5 {[%clk 0:02:44]} 15. Qh5 {[%clk 0:02:40]}  g6 {[%clk 0:02:36]} 16. Qh6 {[%clk 0:02:37]}  exf4 {[%clk 0:02:22]} 17. Bxf4 {[%clk 0:02:38]}  f6 {[%clk 0:02:22]} 18. Rad1 {[%clk 0:01:57]}  fxg5 {[%clk 0:02:20]} 19. Bxd6 {[%clk 0:01:57]}  Bxd6 {[%clk 0:02:17]} 20. Rxd6 {[%clk 0:01:57]}  Qe7 {[%clk 0:02:17]} 21. Rdd1 {[%clk 0:00:54]}  Ne5 {[%clk 0:02:16]} 22. Nd5 {[%clk 0:00:54]}  Qc5+ {[%clk 0:02:06]} 23. Kh1 {[%clk 0:00:54]}  Ng4 {[%clk 0:02:03]} 24. Qxg5 {[%clk 0:00:49]}  Nf2+ {[%clk 0:02:04]} 0-1


[Site "https://www.chess.com"]

[Event "Titled Tuesday Blitz March 08 Late 2022"]
[White "Moral Garcia, Serafin"]
[Black "Petersson, Kjell"]
[WhiteFideId "2201925"]
[BlackFideId "1705148"]
[WhiteElo "2228"]
[BlackElo "2009"]
[Result "1-0"]
[Round "02"]
[TimeControl "180+1"]
[Date "2022.03.09"]
[WhiteClock "0:00:43"]
[BlackClock "0:00:28"]

1. c4 {[%clk 0:03:00]}  f5 {[%clk 0:02:59]} 2. Nc3 {[%clk 0:02:59]}  Nf6 {[%clk 0:02:59]} 3. g3 {[%clk 0:02:58]}  e6 {[%clk 0:02:59]} 4. d3 {[%clk 0:02:57]}  d5 {[%clk 0:02:59]} 5. Bg2 {[%clk 0:02:53]}  d4 {[%clk 0:02:53]} 6. Nb1 {[%clk 0:02:48]}  Nc6 {[%clk 0:02:51]} 7. e3 {[%clk 0:02:49]}  e5 {[%clk 0:02:39]} 8. a3 {[%clk 0:02:46]}  a5 {[%clk 0:02:38]} 9. Ne2 {[%clk 0:02:45]}  Bc5 {[%clk 0:02:35]} 10. exd4 {[%clk 0:02:42]}  Nxd4 {[%clk 0:02:34]} 11. Nbc3 {[%clk 0:02:41]}  O-O {[%clk 0:02:31]} 12. O-O {[%clk 0:02:40]}  c6 {[%clk 0:02:22]} 13. Rb1 {[%clk 0:02:38]}  Qe7 {[%clk 0:02:17]} 14. Be3 {[%clk 0:02:30]}  Be6 {[%clk 0:01:57]} 15. Na4 {[%clk 0:02:25]}  Nxe2+ {[%clk 0:01:50]} 16. Qxe2 {[%clk 0:02:25]}  Bxe3 {[%clk 0:01:48]} 17. fxe3 {[%clk 0:02:24]}  Ng4 {[%clk 0:01:38]} 18. h3 {[%clk 0:02:20]}  Nf6 {[%clk 0:01:35]} 19. d4 {[%clk 0:02:04]}  Bd7 {[%clk 0:01:23]} 20. Qd3 {[%clk 0:01:53]}  Rae8 {[%clk 0:01:20]} 21. Rbe1 {[%clk 0:01:48]}  Nh5 {[%clk 0:01:14]} 22. e4 {[%clk 0:01:38]}  f4 {[%clk 0:01:13]} 23. g4 {[%clk 0:01:34]}  Ng3 {[%clk 0:01:13]} 24. Rf3 {[%clk 0:01:34]}  Rd8 {[%clk 0:01:03]} 25. d5 {[%clk 0:01:28]}  cxd5 {[%clk 0:01:01]} 26. Qxd5+ {[%clk 0:01:23]}  Be6 {[%clk 0:01:00]} 27. Qxa5 {[%clk 0:01:24]}  Bxc4 {[%clk 0:00:58]} 28. Nc3 {[%clk 0:01:17]}  Rd2 {[%clk 0:00:56]} 29. Nd5 {[%clk 0:01:16]}  Bxd5 {[%clk 0:00:51]} 30. Qxd2 {[%clk 0:01:14]}  Bxe4 {[%clk 0:00:51]} 31. Rxg3 {[%clk 0:01:12]}  fxg3 {[%clk 0:00:47]} 32. Rxe4 {[%clk 0:01:07]}  Qc5+ {[%clk 0:00:47]} 33. Qe3 {[%clk 0:01:02]}  Qc2 {[%clk 0:00:42]} 34. Rxe5 {[%clk 0:00:51]}  h6 {[%clk 0:00:30]} 35. Qxg3 {[%clk 0:00:46]}  Rf2 {[%clk 0:00:28]} 36. Qxf2 {[%clk 0:00:43]} 1-0


[Site "https://www.chess.com"]

[Event "Titled Tuesday Blitz March 08 Late 2022"]
[White "Munoz, Francisco Javier"]
[Black "Pershin, Denis"]
[WhiteFideId "128368"]
[BlackFideId "24165506"]
[WhiteElo "2383"]
[BlackElo "2275"]
[Result "1-0"]
[Round "02"]
[TimeControl "180+1"]
[Date "2022.03.09"]
[WhiteClock "0:02:17"]
[BlackClock "0:01:35"]

1. Nf3 {[%clk 0:02:56]}  c5 {[%clk 0:02:57]} 2. e4 {[%clk 0:02:55]}  d6 {[%clk 0:02:55]} 3. c3 {[%clk 0:02:55]}  Nf6 {[%clk 0:02:53]} 4. h3 {[%clk 0:02:55]}  Nc6 {[%clk 0:02:49]} 5. Bd3 {[%clk 0:02:55]}  h6 {[%clk 0:02:39]} 6. Bc2 {[%clk 0:02:54]}  g5 {[%clk 0:02:38]} 7. d4 {[%clk 0:02:53]}  cxd4 {[%clk 0:02:37]} 8. cxd4 {[%clk 0:02:54]}  g4 {[%clk 0:02:38]} 9. hxg4 {[%clk 0:02:52]}  Bxg4 {[%clk 0:02:39]} 10. d5 {[%clk 0:02:51]}  Ne5 {[%clk 0:02:38]} 11. Ba4+ {[%clk 0:02:50]}  Nfd7 {[%clk 0:02:36]} 12. Nxe5 {[%clk 0:02:49]}  Qa5+ {[%clk 0:02:20]} 13. Bd2 {[%clk 0:02:48]}  Qb6 {[%clk 0:01:54]} 14. Qxg4 {[%clk 0:02:42]}  O-O-O {[%clk 0:01:45]} 15. Nxd7 {[%clk 0:02:31]}  Qxb2 {[%clk 0:01:46]} 16. O-O {[%clk 0:02:18]}  Qxa1 {[%clk 0:01:35]} 17. Rc1+ {[%clk 0:02:17]} 1-0


[Site "https://www.chess.com"]